fUST/lending_fUST_20250316
["ID","MTS","AMOUNT","RATE_DAILY","PERIOD"]
[356220148,1742089833264,-516.54,8.493e-05,2]
[356220149,1742089833273,-521.17714615,8.493e-05,2]
[356220150,1742089833283,-500.0,8.493e-05,2]
[356220151,1742089833296,-1254.03,8.493e-05,2]
[356220152,1742089833306,-500.0,8.493e-05,2]
[356220153,1742089833316,-680.53347891,8.493e-05,2]
[356220154,1742089833326,-501.62,8.493e-05,2]
[356220155,1742089833336,-500.0,8.493e-05,2]
[356220156,1742089833346,-611.18,8.493e-05,2]
[356220157,1742089833356,-500.0,8.493e-05,2]
[356220158,1742089833367,-553.81,8.493e-05,2]
[356220159,1742089833377,-584.45,8.493e-05,2]
[356220160,1742089833387,-2752.84,8.493e-05,2]
[356220161,1742089833397,-2339.75,8.493e-05,2]
[356220162,1742089833407,-500.0,8.493e-05,2]
[356220163,1742089833417,-1655.767,8.575e-05,2]
[356220164,1742089833428,-399.0,8.575e-05,2]
[356220165,1742089833438,-500.0,8.767e-05,2]
[356220166,1742089833449,-500.0,8.767e-05,2]
[356220167,1742089833459,-500.0,8.767e-05,2]
[356220168,1742089833470,-500.0,8.767e-05,2]
[356220169,1742089833481,-500.0,8.767e-05,2]
[356220170,1742089833491,-500.0,8.767e-05,2]
[356220171,1742089833502,-500.0,8.767e-05,2]
[356220172,1742089833513,-500.0,8.767e-05,2]
[356220173,1742089833523,-518.19571559,8.767e-05,2]
[356220174,1742089833534,-500.0,8.767e-05,2]
[356220175,1742089833544,-850.51,8.767e-05,2]
[356220176,1742089833554,-500.0,8.767e-05,2]
[356220177,1742089833564,-2127.24,8.767e-05,2]
[356220178,1742089833574,-500.0,8.767e-05,2]
[356220179,1742089833584,-584.53,8.767e-05,2]
[356220180,1742089833595,-500.0,8.767e-05,2]
[356220181,1742089833605,-500.0,8.767e-05,2]
[356220182,1742089833615,-500.0,8.767e-05,2]
[356220183,1742089833627,-736.17,8.767e-05,2]
[356220184,1742089833637,-500.0,8.767e-05,2]
[356220185,1742089833647,-500.0,8.767e-05,2]
[356220186,1742089833657,-1280.08,8.767e-05,2]
[356220187,1742089833667,-500.0,8.767e-05,2]
[356220188,1742089833678,-3026.29,8.767e-05,2]
[356220189,1742089833688,-647.2,8.767e-05,2]
[356220190,1742089833700,-750.0,8.767e-05,2]
[356220191,1742089833711,-1379.95,8.767e-05,2]
[356220192,1742089833721,-500.0,8.767e-05,2]
[356220193,1742089833732,-34022.31,8.767e-05,2]
[356220194,1742089833742,-500.0,8.767e-05,2]
[356220195,1742089833751,-1198.42,8.767e-05,2]
[356220196,1742089833762,-1289.97,8.767e-05,2]
[356220197,1742089833771,-2759.92,8.767e-05,2]
[356220198,1742089833781,-500.0,8.767e-05,2]
[356220199,1742089833792,-500.0,8.767e-05,2]
[356220200,1742089833802,-2383.5,8.767e-05,2]
[356220201,1742089833813,-1771.6,8.767e-05,2]
[356220202,1742089833823,-634.18,8.767e-05,2]
[356220203,1742089833833,-516.54,8.767e-05,2]
[356220204,1742089833843,-500.0,8.767e-05,2]
[356220205,1742089833853,-1254.03,8.767e-05,2]
[356220206,1742089833863,-500.0,8.767e-05,2]
[356220207,1742089833873,-680.53347891,8.767e-05,2]
[356220208,1742089833883,-501.62,8.767e-05,2]
[356220209,1742089833893,-500.0,8.767e-05,2]
[356220210,1742089833903,-611.18,8.767e-05,2]
[356220211,1742089833912,-500.0,8.767e-05,2]
[356220212,1742089833922,-553.81,8.767e-05,2]
[356220213,1742089833932,-584.45,8.767e-05,2]
[356220214,1742089833942,-1291.42062322,8.767e-05,2]
[356220219,1742089837807,-840.812,8.767e-05,2]
[356220233,1742089842987,-257.28439562,8.219e-05,2]
[356220255,1742089845911,-245.1997059,8.137e-05,2]
[356220256,1742089845922,-486.91560438,8.219e-05,2]
[356220257,1742089845933,-500.0,8.219e-05,2]
[356220258,1742089845944,-744.2,8.493e-05,2]
[356220259,1742089845957,-500.0,8.493e-05,2]
[356220260,1742089845968,-620.60737678,8.767e-05,2]
[356220261,1742089845978,-178.90721455,8.767e-05,2]
[356220263,1742090125461,203.7394498,7.647e-05,2]
[356220280,1742091032337,-300.0,8.217e-05,2]
[356220281,1742091032348,-132.48840375,8.218e-05,2]
[356220327,1742091717604,10000.0,0.00014001,30]
[356220328,1742091727034,10000.0,0.00014001,30]
[356220329,1742091745119,10000.0,0.00014001,30]
[356220330,1742091753327,10000.0,0.00014001,30]
[356220331,1742091766706,10000.0,0.00014001,30]
[356220332,1742091779278,10000.0,0.00014001,30]
[356220333,1742091800153,1050.52,0.00014001,30]
[356220338,1742092007459,61413.91,0.00014,30]
[356220398,1742092232583,-300.0,8.217e-05,2]
[356220399,1742092232593,-367.51159625,8.218e-05,2]
[356220400,1742092232602,-586.41506364,8.218e-05,2]
[356220401,1742092232612,-4093.37963289,8.218e-05,2]
[356220402,1742092232621,-543.58689146,8.218e-05,2]
[356220403,1742092232631,-500.0,8.219e-05,2]
[356220404,1742092232640,-500.0,8.219e-05,2]
[356220405,1742092232650,-515.20153538,8.219e-05,2]
[356220406,1742092232660,-506.00691187,8.219e-05,2]
[356220407,1742092232669,-512.40934047,8.219e-05,2]
[356220408,1742092232679,-522.29861357,8.219e-05,2]
[356220409,1742092232688,-611.41336077,8.219e-05,2]
[356220410,1742092232697,-500.0,8.219e-05,2]
[356220411,1742092232708,-500.0,8.219e-05,2]
[356220412,1742092232717,-500.0,8.219e-05,2]
[356220413,1742092232727,-500.0,8.219e-05,2]
[356220414,1742092232737,-523.33978139,8.219e-05,2]
[356220415,1742092232746,-500.0,8.219e-05,2]
[356220416,1742092232756,-500.0,8.219e-05,2]
[356220417,1742092232766,-522.44663426,8.219e-05,2]
[356220418,1742092232776,-518.5219854,8.219e-05,2]
[356220419,1742092232785,-500.0,8.219e-05,2]
[356220420,1742092232794,-500.0,8.219e-05,2]
[356220421,1742092232803,-512.42035038,8.219e-05,2]
[356220422,1742092232812,-508.19692832,8.219e-05,2]
[356220423,1742092232822,-527.62333481,8.219e-05,2]
[356220424,1742092232831,-528.96263705,8.219e-05,2]
[356220425,1742092232840,-500.0,8.219e-05,2]
[356220426,1742092232849,-277.55741875,8.219e-05,2]
[356220427,1742092232859,-500.0,8.219e-05,2]
[356220428,1742092232868,-500.0,8.219e-05,2]
[356220429,1742092232878,-500.0,8.219e-05,2]
[356220430,1742092232887,-682.18,8.219e-05,2]
[356220431,1742092232897,-1953.01,8.219e-05,2]
[356220432,1742092232906,-536.8,8.219e-05,2]
[356220433,1742092232916,-533.74351079,8.219e-05,2]
[356220434,1742092232926,-500.0,8.219e-05,2]
[356220435,1742092232936,-877.98,8.219e-05,2]
[356220436,1742092232946,-500.0,8.219e-05,2]
[356220437,1742092232956,-500.0,8.219e-05,2]
[356220438,1742092232965,-1297.26694379,8.219e-05,2]
[356220509,1742092445355,205.55502106,8e-05,2]
[356220510,1742092678593,200.0,8e-05,2]
[356220511,1742092681031,200.0,8e-05,2]
[356220512,1742092963423,1791.9872528,7.397e-05,2]
[356220513,1742092980725,5000.0,8e-05,2]
[356220514,1742092990394,2494.2449048,8e-05,2]
[356220530,1742093402660,82286.09,0.00014,30]
[356220581,1742093438258,-356.90719724,8.136e-05,2]
[356220582,1742093438269,-200.0,8.218e-05,2]
[356220583,1742093438278,-200.0,8.218e-05,2]
[356220584,1742093438288,-300.0,8.218e-05,2]
[356220585,1742093438297,-599.78742009,8.219e-05,2]
[356220586,1742093438306,-202.80616726,8.219e-05,2]
[356220587,1742093438317,-295.89921541,8.219e-05,2]
[356220591,1742093441815,-204.10078459,8.219e-05,2]
[356220592,1742093441828,-500.0,8.219e-05,2]
[356220593,1742093441839,-500.0,8.219e-05,2]
[356220594,1742093441851,-500.0,8.219e-05,2]
[356220595,1742093441863,-530.48142022,8.219e-05,2]
[356220596,1742093441875,-500.0,8.219e-05,2]
[356220597,1742093441887,-500.0,8.219e-05,2]
[356220598,1742093441898,-525.0970895,8.219e-05,2]
[356220599,1742093441909,-576.08,8.219e-05,2]
[356220600,1742093441921,-595.93348202,8.219e-05,2]
[356220601,1742093441932,-653.76,8.219e-05,2]
[356220602,1742093441942,-500.0,8.219e-05,2]
[356220603,1742093441952,-1871.63,8.219e-05,2]
[356220604,1742093441963,-500.0,8.219e-05,2]
[356220605,1742093441973,-589.15838373,8.219e-05,2]
[356220606,1742093441983,-240.08169898,8.219e-05,2]
[356220607,1742093441993,-514.44,8.219e-05,2]
[356220608,1742093442005,-500.0,8.219e-05,2]
[356220609,1742093442016,-500.0,8.219e-05,2]
[356220610,1742093442029,-841.4,8.219e-05,2]
[356220611,1742093442040,-518.63530967,8.219e-05,2]
[356220612,1742093442052,-500.0,8.219e-05,2]
[356220613,1742093442063,-500.0,8.219e-05,2]
[356220614,1742093442073,-1120.07,8.219e-05,2]
[356220615,1742093442084,-566.3,8.219e-05,2]
[356220616,1742093442095,-656.25,8.219e-05,2]
[356220617,1742093442106,-1207.45,8.219e-05,2]
[356220618,1742093442117,-364.48396008,8.219e-05,2]
[356220619,1742093442127,-500.0,8.219e-05,2]
[356220620,1742093442137,-168.69424515,8.219e-05,2]
[356220621,1742093442148,-500.0,8.219e-05,2]
[356220622,1742093442158,-32171.95,8.219e-05,2]
[356220623,1742093442169,-2614.58,8.219e-05,2]
[356220624,1742093442179,-514.63954102,8.219e-05,2]
[356220625,1742093442189,-500.0,8.219e-05,2]
[356220626,1742093442199,-1048.62,8.219e-05,2]
[356220627,1742093442210,-513.5990857,8.219e-05,2]
[356220628,1742093442220,-1128.72,8.219e-05,2]
[356220629,1742093442231,-500.0,8.219e-05,2]
[356220630,1742093442242,-2085.57,8.219e-05,2]
[356220631,1742093442252,-500.0,8.219e-05,2]
[356220632,1742093442262,-1550.15,8.219e-05,2]
[356220633,1742093442273,-500.0,8.219e-05,2]
[356220634,1742093442283,-2414.93,8.219e-05,2]
[356220635,1742093442294,-500.0,8.219e-05,2]
[356220636,1742093442304,-1097.27,8.219e-05,2]
[356220637,1742093442315,-500.0,8.219e-05,2]
[356220638,1742093442326,-500.0,8.219e-05,2]
[356220639,1742093442336,-554.91,8.219e-05,2]
[356220640,1742093442347,-500.0,8.219e-05,2]
[356220641,1742093442357,-500.0,8.219e-05,2]
[356220642,1742093442368,-500.0,8.219e-05,2]
[356220643,1742093442378,-500.0,8.219e-05,2]
[356220644,1742093442388,-511.39,8.219e-05,2]
[356220645,1742093442398,-500.0,8.219e-05,2]
[356220646,1742093442408,-500.0,8.219e-05,2]
[356220647,1742093442419,-500.0,8.219e-05,2]
[356220648,1742093442429,-2408.74,8.219e-05,2]
[356220649,1742093442439,-2137.32,8.219e-05,2]
[356220650,1742093442453,-272.21339158,8.291e-05,2]
[356220651,1742093442463,-380.51082402,8.292e-05,2]
[356220652,1742093442473,-151.0,8.292e-05,2]
[356220653,1742093442483,-96933.50165489,8.293e-05,2]
[356220654,1742093442494,-152.942521,8.293e-05,2]
[356220655,1742093442505,-272.21339156,8.41e-05,2]
[356220656,1742093442516,-327.85915775,8.493e-05,2]
[356220657,1742093442527,-500.0,8.493e-05,2]
[356220658,1742093442538,-500.0,8.493e-05,2]
[356220659,1742093442549,-500.0,8.493e-05,2]
[356220660,1742093442559,-596.54005501,8.493e-05,2]
[356220661,1742093442570,-500.0,8.493e-05,2]
[356220662,1742093442581,-653.76,8.493e-05,2]
[356220663,1742093442592,-500.0,8.493e-05,2]
[356220664,1742093442602,-1871.63,8.493e-05,2]
[356220665,1742093442613,-500.0,8.493e-05,2]
[356220666,1742093442624,-514.44,8.493e-05,2]
[356220667,1742093442634,-480.33063433,8.493e-05,2]
[356220668,1742093442645,-500.0,8.493e-05,2]
[356220669,1742093442656,-841.4,8.493e-05,2]
[356220670,1742093442666,-500.0,8.493e-05,2]
[356220671,1742093442677,-500.0,8.493e-05,2]
[356220672,1742093442688,-1120.07,8.493e-05,2]
[356220673,1742093442698,-566.3,8.493e-05,2]
[356220674,1742093442709,-656.25,8.493e-05,2]
[356220675,1742093442720,-1207.45,8.493e-05,2]
[356220676,1742093442731,-500.0,8.493e-05,2]
[356220677,1742093442746,-32171.95,8.493e-05,2]
[356220678,1742093442757,-2614.58,8.493e-05,2]
[356220679,1742093442767,-500.0,8.493e-05,2]
[356220680,1742093442778,-1048.62,8.493e-05,2]
[356220681,1742093442788,-1128.72,8.493e-05,2]
[356220682,1742093442799,-500.0,8.493e-05,2]
[356220683,1742093442809,-2085.57,8.493e-05,2]
[356220684,1742093442820,-500.0,8.493e-05,2]
[356220685,1742093442831,-1550.15,8.493e-05,2]
[356220686,1742093442841,-500.0,8.493e-05,2]
[356220687,1742093442852,-2414.93,8.493e-05,2]
[356220688,1742093442863,-500.0,8.493e-05,2]
[356220689,1742093442877,-1097.27,8.493e-05,2]
[356220690,1742093442888,-500.0,8.493e-05,2]
[356220691,1742093442899,-500.0,8.493e-05,2]
[356220692,1742093442909,-554.91,8.493e-05,2]
[356220693,1742093442920,-500.0,8.493e-05,2]
[356220694,1742093442931,-500.0,8.493e-05,2]
[356220695,1742093442941,-500.0,8.493e-05,2]
[356220696,1742093442952,-500.0,8.493e-05,2]
[356220697,1742093442962,-511.39,8.493e-05,2]
[356220698,1742093442974,-500.0,8.493e-05,2]
[356220699,1742093442985,-500.0,8.493e-05,2]
[356220700,1742093442995,-500.0,8.493e-05,2]
[356220701,1742093443006,-2408.74,8.493e-05,2]
[356220702,1742093443017,-2137.32,8.493e-05,2]
[356220703,1742093443028,-272.21339156,8.529e-05,2]
[356220705,1742093443038,-761.3935449,8.601e-05,2]
[356220707,1742093443050,-399.0,8.602e-05,2]
[356220709,1742093443060,-272.21339156,8.648e-05,2]
[356220711,1742093443071,-500.0,8.767e-05,2]
[356220713,1742093443082,-500.0,8.767e-05,2]
[356220715,1742093443093,-500.0,8.767e-05,2]
[356220717,1742093443103,-500.0,8.767e-05,2]
[356220719,1742093443114,-653.76,8.767e-05,2]
[356220721,1742093443124,-500.0,8.767e-05,2]
[356220724,1742093443134,-272.21339156,8.767e-05,2]
[356220726,1742093443145,-1871.63,8.767e-05,2]
[356220728,1742093443155,-639.71493151,8.767e-05,2]
[356220730,1742093443165,-514.44,8.767e-05,2]
[356220732,1742093443176,-500.0,8.767e-05,2]
[356220734,1742093443186,-841.4,8.767e-05,2]
[356220736,1742093443196,-500.0,8.767e-05,2]
[356220738,1742093443206,-500.0,8.767e-05,2]
[356220740,1742093443217,-1120.07,8.767e-05,2]
[356220743,1742093443227,-566.3,8.767e-05,2]
[356220745,1742093443238,-656.25,8.767e-05,2]
[356220747,1742093443248,-1207.45,8.767e-05,2]
[356220750,1742093443258,-500.0,8.767e-05,2]
[356220752,1742093443268,-28297.1483639,8.767e-05,2]
[356220762,1742093468163,1130.0121281,7.591e-05,2]
[356220763,1742093481054,424.7358312,7.591e-05,2]
[356220768,1742093544170,1659.0010342,7.591e-05,2]
[356220769,1742093838369,1490.286,0.00014001,30]
[356220770,1742094082339,589.8752682,7.591e-05,2]
[356220771,1742094258297,3607.7923941,7.356e-05,2]
[356220772,1742094261888,250.0,7.591e-05,2]
[356220774,1742094623990,6976.7220483,7.43e-05,2]
[356220794,1742094632756,-198.57291149,8.117e-05,2]
[356220795,1742094632766,-500.0,8.218e-05,2]
[356220796,1742094632775,-301.42708851,8.218e-05,2]
[356220799,1742094632915,-198.57291149,8.218e-05,2]
[356220800,1742094632924,-500.0,8.218e-05,2]
[356220801,1742094632934,-191.30235665,8.218e-05,2]
[356220864,1742094643688,-308.69764335,8.218e-05,2]
[356220865,1742094643698,-500.0,8.218e-05,2]
[356220866,1742094643708,-212.95162276,8.218e-05,2]
[356220875,1742094801602,300.0,7.43e-05,2]
[356220877,1742095340584,250.0,7.287e-05,2]
[356220878,1742095525333,24900.0,7.397e-05,2]
[356220880,1742095669497,10000.0,7.287e-05,2]
[356220897,1742095831910,-198.57291149,8.118e-05,2]
[356220898,1742095831920,-300.0,8.217e-05,2]
[356220899,1742095831931,-287.04837724,8.218e-05,2]
[356220900,1742095831940,-500.0,8.218e-05,2]
[356220901,1742095831950,-500.0,8.218e-05,2]
[356220902,1742095831960,-200.0,8.218e-05,2]
[356220903,1742095831970,-500.0,8.218e-05,2]
[356220904,1742095831979,-500.0,8.218e-05,2]
[356220905,1742095831989,-500.0,8.218e-05,2]
[356220906,1742095831999,-500.0,8.218e-05,2]
[356220907,1742095832009,-500.0,8.218e-05,2]
[356220908,1742095832019,-500.0,8.218e-05,2]
[356220909,1742095832030,-511.39609102,8.219e-05,2]
[356220910,1742095832040,-280.88208758,8.219e-05,2]
[356220911,1742095832050,-500.0,8.219e-05,2]
[356220912,1742095832059,-500.0,8.219e-05,2]
[356220913,1742095832069,-500.0,8.219e-05,2]
[356220914,1742095832079,-500.0,8.219e-05,2]
[356220915,1742095832089,-290.49381172,8.219e-05,2]
[356220916,1742095832099,-516.71814241,8.219e-05,2]
[356220917,1742095832109,-511.22703009,8.219e-05,2]
[356220918,1742095832118,-500.0,8.219e-05,2]
[356220919,1742095832128,-508.25119029,8.219e-05,2]
[356220920,1742095832138,-507.53383775,8.219e-05,2]
[356220921,1742095832147,-517.82085643,8.219e-05,2]
[356220922,1742095832157,-1959.21,8.219e-05,2]
[356220923,1742095832166,-525.86161135,8.219e-05,2]
[356220924,1742095832175,-500.0,8.219e-05,2]
[356220925,1742095832184,-500.0,8.219e-05,2]
[356220926,1742095832194,-1637.68,8.219e-05,2]
[356220927,1742095832204,-500.0,8.219e-05,2]
[356220928,1742095832216,-500.0,8.219e-05,2]
[356220929,1742095832226,-736.23,8.219e-05,2]
[356220930,1742095832235,-980.06,8.219e-05,2]
[356220931,1742095832246,-2396.69,8.219e-05,2]
[356220932,1742095832257,-500.0,8.219e-05,2]
[356220933,1742095832267,-1056.52,8.219e-05,2]
[356220934,1742095832276,-574.22,8.219e-05,2]
[356220935,1742095832286,-500.0,8.219e-05,2]
[356220936,1742095832296,-503.42488281,8.219e-05,2]
[356220937,1742095832306,-518.56626455,8.219e-05,2]
[356220938,1742095832315,-500.0,8.219e-05,2]
[356220939,1742095832324,-500.0,8.219e-05,2]
[356220940,1742095832334,-336.76127712,8.219e-05,2]
[356220943,1742095837646,-13491.11811425,8.219e-05,2]
[356220959,1742095840046,-12.90816623,8.219e-05,2]
[356221028,1742096354491,10000.0,0.00014001,30]
[356221029,1742096363053,10000.0,0.00014001,30]
[356221030,1742096369537,10000.0,0.00014001,30]
[356221031,1742096375752,10000.0,0.00014001,30]
[356221032,1742096382634,10000.0,0.00014001,30]
[356221033,1742096388312,10000.0,0.00014001,30]
[356221034,1742096395210,10000.0,0.00014001,30]
[356221035,1742096400794,10000.0,0.00014001,30]
[356221036,1742096407380,10000.0,0.00014001,30]
[356221037,1742096415917,10000.0,0.00014001,30]
[356221038,1742096421638,10000.0,0.00014001,30]
[356221039,1742096429582,10000.0,0.00014001,30]
[356221040,1742096435135,10000.0,0.00014001,30]
[356221041,1742096441079,10000.0,0.00014001,30]
[356221042,1742096449885,10000.0,0.00014001,30]
[356221043,1742096456096,10000.0,0.00014001,30]
[356221044,1742096461664,10000.0,0.00014001,30]
[356221045,1742096478068,10000.0,0.00014001,30]
[356221046,1742096484027,10000.0,0.00014001,30]
[356221047,1742096490213,10000.0,0.00014001,30]
[356221048,1742096493674,500.0967521,8e-05,2]
[356221049,1742096495367,10000.0,0.00014001,30]
[356221050,1742096500417,10000.0,0.00014001,30]
[356221051,1742096505437,10000.0,0.00014001,30]
[356221052,1742096510136,10000.0,0.00014001,30]
[356221054,1742096699295,24900.0,7.399e-05,2]
[356221055,1742096729703,10000.0,7.4e-05,2]
[356221056,1742096819723,250.0,7.399e-05,2]
[356221071,1742097037807,-465.79327212,8.091e-05,2]
[356221072,1742097037817,-300.0,8.218e-05,2]
[356221073,1742097037829,-5244.08754289,8.219e-05,2]
[356221074,1742097037839,-500.0,8.219e-05,2]
[356221075,1742097037849,-500.0,8.219e-05,2]
[356221076,1742097037858,-500.0,8.219e-05,2]
[356221077,1742097037868,-500.0,8.219e-05,2]
[356221078,1742097037878,-500.0,8.219e-05,2]
[356221079,1742097037887,-513.52649349,8.219e-05,2]
[356221080,1742097037897,-551.21,8.219e-05,2]
[356221081,1742097037907,-500.0,8.219e-05,2]
[356221082,1742097037916,-705.55,8.219e-05,2]
[356221083,1742097037926,-500.0,8.219e-05,2]
[356221084,1742097037936,-1569.44,8.219e-05,2]
[356221085,1742097037946,-939.23,8.219e-05,2]
[356221086,1742097037955,-550.3,8.219e-05,2]
[356221087,1742097037965,-2296.83,8.219e-05,2]
[356221088,1742097037974,-500.0,8.219e-05,2]
[356221089,1742097037984,-500.0,8.219e-05,2]
[356221091,1742097037994,-27735.21,8.219e-05,2]
[356221093,1742097038003,-500.0,8.219e-05,2]
[356221095,1742097038012,-1012.5,8.219e-05,2]
[356221096,1742097038021,-500.0,8.219e-05,2]
[356221097,1742097038030,-961.24,8.219e-05,2]
[356221098,1742097038039,-500.0,8.219e-05,2]
[356221100,1742097038049,-282.00550729,8.219e-05,2]
[356221102,1742097038058,-500.0,8.219e-05,2]
[356221103,1742097038067,-1034.66,8.219e-05,2]
[356221104,1742097038076,-1243.34,8.219e-05,2]
[356221105,1742097038086,-500.0,8.219e-05,2]
[356221106,1742097038096,-1911.77,8.219e-05,2]
[356221108,1742097038105,-2213.68,8.219e-05,2]
[356221109,1742097038115,-500.0,8.219e-05,2]
[356221111,1742097038124,-1005.83,8.219e-05,2]
[356221113,1742097038134,-508.67,8.219e-05,2]
[356221115,1742097038143,-500.0,8.219e-05,2]
[356221116,1742097038152,-500.0,8.219e-05,2]
[356221118,1742097038161,-500.0,8.219e-05,2]
[356221119,1742097038171,-500.0,8.219e-05,2]
[356221120,1742097038180,-500.0,8.219e-05,2]
[356221121,1742097038189,-500.0,8.219e-05,2]
[356221122,1742097038198,-500.0,8.219e-05,2]
[356221123,1742097038207,-500.0,8.219e-05,2]
[356221124,1742097038217,-500.0,8.219e-05,2]
[356221125,1742097038226,-505.1532257,8.219e-05,2]
[356221126,1742097038236,-512.26156052,8.219e-05,2]
[356221127,1742097038246,-2208.01,8.219e-05,2]
[356221128,1742097038256,-500.0,8.219e-05,2]
[356221129,1742097038266,-511.09430788,8.219e-05,2]
[356221130,1742097038277,-1877.58,8.219e-05,2]
[356221131,1742097038287,-500.0,8.219e-05,2]
[356221132,1742097038298,-500.0,8.219e-05,2]
[356221133,1742097038308,-161.46103008,8.393e-05,2]
[356221134,1742097038317,-882.983894,8.492e-05,2]
[356221135,1742097038327,-882.983894,8.492e-05,2]
[356221136,1742097038336,-625.64917662,8.492e-05,2]
[356221137,1742097038346,-500.0,8.493e-05,2]
[356221138,1742097038355,-151.0,8.493e-05,2]
[356221139,1742097038365,-151.0,8.493e-05,2]
[356221140,1742097038374,-500.0,8.493e-05,2]
[356221141,1742097038384,-500.0,8.493e-05,2]
[356221142,1742097038393,-500.0,8.493e-05,2]
[356221143,1742097038403,-500.0,8.493e-05,2]
[356221144,1742097038412,-882.983894,8.493e-05,2]
[356221145,1742097038422,-882.983894,8.493e-05,2]
[356221146,1742097038432,-882.983894,8.493e-05,2]
[356221147,1742097038441,-882.983894,8.493e-05,2]
[356221148,1742097038451,-551.21,8.493e-05,2]
[356221149,1742097038460,-184.44204251,8.493e-05,2]
[356221150,1742097038470,-500.0,8.493e-05,2]
[356221151,1742097038479,-705.55,8.493e-05,2]
[356221152,1742097038489,-268.64639336,8.493e-05,2]
[356221198,1742097207688,1968.3353556,7.425e-05,2]
[356221200,1742097405500,5000.0,8e-05,2]
[356221201,1742097420392,1189.15963517,8e-05,2]
[356221202,1742097587188,5000.0,8e-05,2]
[356221204,1742097796421,511.73408557,8e-05,2]
[356221205,1742097939182,612.04,8e-05,2]
[356221206,1742097989246,250.0,7.424e-05,2]
[356221207,1742098032542,10000.0,7.424e-05,2]
[356221218,1742098212657,5000.0,8e-05,2]
[356221219,1742098227741,882.35769189,8e-05,2]
[356221250,1742098232147,-5000.0,8.135e-05,2]
[356221251,1742098232158,-300.0,8.217e-05,2]
[356221252,1742098232168,-500.0,8.218e-05,2]
[356221253,1742098232179,-500.0,8.218e-05,2]
[356221254,1742098232190,-500.0,8.218e-05,2]
[356221255,1742098232201,-500.0,8.218e-05,2]
[356221256,1742098232213,-500.0,8.218e-05,2]
[356221257,1742098232223,-416.06968347,8.218e-05,2]
[356221258,1742098232234,-500.0,8.218e-05,2]
[356221259,1742098232245,-500.0,8.218e-05,2]
[356221260,1742098232255,-500.0,8.218e-05,2]
[356221261,1742098232266,-500.0,8.218e-05,2]
[356221262,1742098232276,-500.0,8.218e-05,2]
[356221263,1742098232286,-500.0,8.218e-05,2]
[356221264,1742098232296,-500.0,8.218e-05,2]
[356221265,1742098232307,-380.14920811,8.218e-05,2]
[356221266,1742098232318,-437.95442364,8.218e-05,2]
[356221267,1742098232329,-2145.68808732,8.218e-05,2]
[356221268,1742098232352,-636.94,8.218e-05,2]
[356221282,1742098237956,-5095.63298163,8.218e-05,2]
[356221298,1742098240225,-2649.79905847,8.218e-05,2]
[356221299,1742098240282,-4118.31557797,8.218e-05,2]
[356221300,1742098240292,-987.35,8.219e-05,2]
[356221301,1742098240302,-618.088726,8.219e-05,2]
[356221302,1742098240311,-500.0,8.219e-05,2]
[356221303,1742098240321,-618.088726,8.219e-05,2]
[356221304,1742098240332,-618.088726,8.219e-05,2]
[356221305,1742098240344,-618.088726,8.219e-05,2]
[356221306,1742098240353,-500.0,8.219e-05,2]
[356221307,1742098240363,-500.0,8.219e-05,2]
[356221308,1742098240373,-500.0,8.219e-05,2]
[356221309,1742098240382,-151.0,8.219e-05,2]
[356221310,1742098240392,-151.0,8.219e-05,2]
[356221311,1742098240401,-500.9392141,8.219e-05,2]
[356221312,1742098240411,-504.31291443,8.219e-05,2]
[356221313,1742098240420,-499.70728779,8.219e-05,2]
[356221315,1742098240430,-508.36312876,8.219e-05,2]
[356221317,1742098240439,-501.58829964,8.219e-05,2]
[356221319,1742098240449,-503.97999221,8.219e-05,2]
[356221320,1742098240459,-513.1013017,8.219e-05,2]
[356221321,1742098240468,-516.82929116,8.219e-05,2]
[356221322,1742098240478,-501.65276858,8.219e-05,2]
[356221323,1742098240487,-502.27249853,8.219e-05,2]
[356221324,1742098240497,-504.26612411,8.219e-05,2]
[356221325,1742098240507,-500.0,8.219e-05,2]